[Event "GrandPrix_29.05"]
[Site "Chess.com"]
[Date "2020.05.29"]
[Round "6"]
[White "Doukis"]
[Black "DariaVoit"]
[Result "0-1"]
[WhiteElo "2092"]
[BlackElo "2127"]
[TimeControl "600+2"]
[EndTime "11:59:20 PDT"]
[Termination "DariaVoit won by resignation"]

1. d4 {[%clk 0:10:01.9]} 1... Nf6 {[%clk 0:09:58.9]} 2. c4 {[%clk 0:09:59.6]}
2... e6 {[%clk 0:09:59.9]} 3. Nc3 {[%clk 0:09:59.8]} 3... Bb4 {[%clk 0:09:55.4]}
4. a3 {[%clk 0:10:00.8]} 4... Bxc3+ {[%clk 0:09:55.5]} 5. bxc3 {[%clk
0:10:02.7]} 5... O-O {[%clk 0:09:48.7]} 6. e3 {[%clk 0:10:02.6]} 6... b6 {[%clk
0:09:45.9]} 7. Bd3 {[%clk 0:10:03.4]} 7... Nc6 {[%clk 0:09:46.1]} 8. Ne2 {[%clk
0:10:03]} 8... Ba6 {[%clk 0:09:46.5]} 9. e4 {[%clk 0:10:04.3]} 9... d6 {[%clk
0:09:46.7]} 10. O-O {[%clk 0:10:01.3]} 10... Na5 {[%clk 0:09:47.4]} 11. f4
{[%clk 0:09:36.9]} 11... Bxc4 {[%clk 0:09:42.9]} 12. f5 {[%clk 0:09:28.7]} 12...
e5 {[%clk 0:09:22]} 13. Bg5 {[%clk 0:09:21]} 13... h6 {[%clk 0:09:20.9]} 14. Bh4
{[%clk 0:09:19]} 14... Qd7 {[%clk 0:09:15]} 15. Bxf6 {[%clk 0:09:17.7]} 15...
gxf6 {[%clk 0:09:15.4]} 16. Ng3 {[%clk 0:09:18.8]} 16... Kh7 {[%clk 0:08:54.1]}
17. Nh5 {[%clk 0:08:25.4]} 17... Qe7 {[%clk 0:08:52.4]} 18. Bxc4 {[%clk
0:08:20.4]} 18... Nxc4 {[%clk 0:08:52.6]} 19. Qd3 {[%clk 0:08:21.5]} 19... b5
{[%clk 0:08:46.7]} 20. a4 {[%clk 0:08:04.8]} 20... c6 {[%clk 0:08:47.3]} 21.
axb5 {[%clk 0:07:12.1]} 21... cxb5 {[%clk 0:08:45.9]} 22. Ra6 {[%clk 0:06:38.3]}
22... Rg8 {[%clk 0:08:27.4]} 23. dxe5 {[%clk 0:05:55.3]} 23... fxe5 {[%clk
0:08:17.2]} 24. f6 {[%clk 0:05:54.5]} 24... Qb7 {[%clk 0:08:13.5]} 25. Ra2
{[%clk 0:05:09.2]} 25... Rg5 {[%clk 0:08:04.5]} 26. Ng3 {[%clk 0:05:06.6]} 26...
Rag8 {[%clk 0:06:59]} 27. Nf5 {[%clk 0:05:06.1]} 27... a5 {[%clk 0:06:48.4]} 28.
Rf3 {[%clk 0:03:25.2]} 28... a4 {[%clk 0:06:18.8]} 29. Rh3 {[%clk 0:03:25.6]}
29... R8g6 {[%clk 0:06:18.2]} 30. Ne7 {[%clk 0:02:22.7]} 30... Rxf6 {[%clk
0:06:10.5]} 31. Nd5 {[%clk 0:02:23.7]} 31... Qa7+ {[%clk 0:05:58.6]} 32. Kh1
{[%clk 0:02:21.7]} 32... Rf2 {[%clk 0:05:58.6]} 33. Ra1 {[%clk 0:01:30.7]} 33...
Rfxg2 {[%clk 0:05:51]} 34. Qf1 {[%clk 0:01:11.8]} 34... Nd2 {[%clk 0:05:37.7]}
35. Qxg2 {[%clk 0:00:41.7]} 35... Rxg2 {[%clk 0:05:38.2]} 36. Kxg2 {[%clk
0:00:43.6]} 36... Nxe4 {[%clk 0:05:39.5]} 37. Rf1 {[%clk 0:00:44.1]} 37... Ng5
{[%clk 0:05:40.2]} 38. Nf6+ {[%clk 0:00:34.9]} 38... Kg6 {[%clk 0:05:38.8]} 39.
Rg3 {[%clk 0:00:36.3]} 39... a3 {[%clk 0:05:19.6]} 40. h4 {[%clk 0:00:36.8]}
40... a2 {[%clk 0:05:20.3]} 41. hxg5 {[%clk 0:00:30.9]} 41... hxg5 {[%clk
0:04:20.1]} 42. Ne4 {[%clk 0:00:22.4]} 42... a1=Q {[%clk 0:04:15.3]} 43. Rxg5+
{[%clk 0:00:06.4]} 43... Kh7 {[%clk 0:04:07.5]} 44. Rh5+ {[%clk 0:00:03.1]}
44... Kg7 {[%clk 0:04:08.5]} 45. Rg5+ {[%clk 0:00:02.1]} 45... Kf8 {[%clk
0:04:09.4]} 46. Rxa1 {[%clk 0:00:02.3]} 46... Qxa1 {[%clk 0:04:09.5]} 47. Rf5
{[%clk 0:00:03.9]} 47... Qd1 {[%clk 0:04:03]} 48. Rf2 {[%clk 0:00:04]} 48...
Qg4+ {[%clk 0:04:01.9]} 49. Ng3 {[%clk 0:00:05.2]} 49... Qc4 {[%clk 0:03:59]}
0-1

[Event "GrandPrix_29.05"]
[Site "Chess.com"]
[Date "2020.05.29"]
[Round "6"]
[White "gygygygygyggygygygy"]
[Black "Sakkcapak"]
[Result "0-1"]
[WhiteElo "1978"]
[BlackElo "2102"]
[TimeControl "600+2"]
[EndTime "11:59:21 PDT"]
[Termination "Sakkcapak won by resignation"]

1. e4 {[%clk 0:10:01.9]} 1... e6 {[%clk 0:10:00.1]} 2. d3 {[%clk 0:10:00.2]}
2... d5 {[%clk 0:10:00.6]} 3. Nd2 {[%clk 0:10:00.7]} 3... Nf6 {[%clk 0:10:00.9]}
4. Ngf3 {[%clk 0:10:01.2]} 4... c5 {[%clk 0:10:01]} 5. g3 {[%clk 0:10:02.4]}
5... Nc6 {[%clk 0:10:01.9]} 6. Bg2 {[%clk 0:10:04]} 6... Be7 {[%clk 0:10:01.5]}
7. O-O {[%clk 0:10:05.4]} 7... O-O {[%clk 0:10:01.7]} 8. Re1 {[%clk 0:10:06.8]}
8... Qc7 {[%clk 0:09:56.5]} 9. Qe2 {[%clk 0:10:06.8]} 9... b5 {[%clk 0:09:54.2]}
10. e5 {[%clk 0:10:06.2]} 10... Nd7 {[%clk 0:09:54.7]} 11. Nf1 {[%clk
0:10:07.6]} 11... a5 {[%clk 0:09:54.1]} 12. h4 {[%clk 0:10:08.3]} 12... Ba6
{[%clk 0:09:53.2]} 13. h5 {[%clk 0:10:07.6]} 13... h6 {[%clk 0:09:50.7]} 14. Bf4
{[%clk 0:10:07.5]} 14... Rfc8 {[%clk 0:09:49.9]} 15. Ne3 {[%clk 0:10:04.3]}
15... Qd8 {[%clk 0:09:43.8]} 16. Ng4 {[%clk 0:10:02.6]} 16... Kh7 {[%clk
0:09:28.4]} 17. Qd2 {[%clk 0:09:47.4]} 17... Bf8 {[%clk 0:09:17.4]} 18. Ngh2
{[%clk 0:09:46.9]} 18... b4 {[%clk 0:08:30.5]} 19. g4 {[%clk 0:09:43.5]} 19...
Be7 {[%clk 0:08:03.4]} 20. g5 {[%clk 0:09:42.6]} 20... hxg5 {[%clk 0:07:48]} 21.
Nxg5+ {[%clk 0:09:41.7]} 21... Bxg5 {[%clk 0:07:39.9]} 22. Bxg5 {[%clk
0:09:42.2]} 22... f6 {[%clk 0:07:02.2]} 23. exf6 {[%clk 0:09:41.1]} 23... gxf6
{[%clk 0:07:03.4]} 24. Bh4 {[%clk 0:09:27.2]} 24... Qg8 {[%clk 0:06:56]} 25. Kh1
{[%clk 0:09:07.6]} 25... Qf7 {[%clk 0:06:52.9]} 26. Bh3 {[%clk 0:08:35]} 26...
Re8 {[%clk 0:05:59.7]} 27. Qe2 {[%clk 0:08:04.8]} 27... Nd4 {[%clk 0:05:48.9]}
28. Qg4 {[%clk 0:07:19.5]} 28... Ne5 {[%clk 0:05:32.6]} 29. Qf4 {[%clk
0:07:16.6]} 29... Rf8 {[%clk 0:04:43.2]} 30. Rg1 {[%clk 0:06:25.5]} 30... Ne2
{[%clk 0:04:25.6]} 31. Qe3 {[%clk 0:06:00.6]} 31... Nxg1 {[%clk 0:04:26.1]} 32.
Rxg1 {[%clk 0:06:01.7]} 32... Rg8 {[%clk 0:04:22.2]} 33. f4 {[%clk 0:05:41.7]}
33... Rxg1+ {[%clk 0:03:53.5]} 34. Kxg1 {[%clk 0:05:15.3]} 34... Rg8+ {[%clk
0:03:51.7]} 35. Kf1 {[%clk 0:05:00.4]} 35... Qxh5 {[%clk 0:03:32.7]} 36. Be1
{[%clk 0:04:24.4]} 36... d4 {[%clk 0:03:24.4]} 37. Qe4+ {[%clk 0:02:58.3]} 37...
f5 {[%clk 0:03:10.8]} 38. Bxf5+ {[%clk 0:02:27.6]} 38... exf5 {[%clk 0:02:32.7]}
39. Qxe5 {[%clk 0:02:15.6]} 39... Qh3+ {[%clk 0:02:31.5]} 40. Ke2 {[%clk
0:02:13.4]} 40... Qxh2+ {[%clk 0:02:28.7]} 41. Kd1 {[%clk 0:02:12.9]} 41... Qh5+
{[%clk 0:02:26.2]} 42. Kc1 {[%clk 0:02:08.8]} 42... Re8 {[%clk 0:02:07.6]} 43.
Qc7+ {[%clk 0:02:04.1]} 43... Kg8 {[%clk 0:02:06.8]} 0-1

[Event "GrandPrix_29.05"]
[Site "Chess.com"]
[Date "2020.05.29"]
[Round "6"]
[White "temus_galaktionov"]
[Black "VerdeNotte"]
[Result "1/2-1/2"]
[WhiteElo "2572"]
[BlackElo "2659"]
[TimeControl "600+2"]
[EndTime "11:59:32 PDT"]
[Termination "Game drawn by agreement"]

1. d4 {[%clk 0:10:01.3]} 1... Nf6 {[%clk 0:09:59.9]} 2. Nf3 {[%clk 0:09:59.2]}
2... g6 {[%clk 0:10:00.8]} 3. c4 {[%clk 0:09:59.5]} 3... Bg7 {[%clk 0:10:01.3]}
4. Nc3 {[%clk 0:10:01.4]} 4... O-O {[%clk 0:10:02.2]} 5. e4 {[%clk 0:10:01.5]}
5... d6 {[%clk 0:10:03.5]} 6. Be2 {[%clk 0:10:02.9]} 6... Nbd7 {[%clk
0:10:04.7]} 7. O-O {[%clk 0:10:02.6]} 7... e5 {[%clk 0:10:05.6]} 8. Be3 {[%clk
0:10:02]} 8... Qe7 {[%clk 0:09:59.9]} 9. dxe5 {[%clk 0:09:56.7]} 9... dxe5
{[%clk 0:09:55.7]} 10. Nd5 {[%clk 0:09:56.9]} 10... Qd8 {[%clk 0:09:57]} 11. Qc2
{[%clk 0:09:42.7]} 11... c6 {[%clk 0:09:56.7]} 12. Nxf6+ {[%clk 0:09:43.4]}
12... Qxf6 {[%clk 0:09:43.6]} 13. c5 {[%clk 0:09:42.7]} 13... Qe7 {[%clk
0:09:35.1]} 14. b4 {[%clk 0:09:40.9]} 14... f5 {[%clk 0:09:00.1]} 15. Bc4+
{[%clk 0:09:22.9]} 15... Kh8 {[%clk 0:08:59.6]} 16. exf5 {[%clk 0:08:46.9]}
16... gxf5 {[%clk 0:08:57.1]} 17. Rae1 {[%clk 0:08:41.7]} 17... e4 {[%clk
0:08:23.2]} 18. Bg5 {[%clk 0:07:42]} 18... Qe8 {[%clk 0:08:01.3]} 19. Bf4 {[%clk
0:07:22.6]} 19... Qg6 {[%clk 0:06:29]} 20. Nd2 {[%clk 0:07:17.1]} 20... Ne5
{[%clk 0:06:15.9]} 21. f3 {[%clk 0:07:17.9]} 21... Nxc4 {[%clk 0:04:52.7]} 22.
Nxc4 {[%clk 0:07:19.8]} 22... Be6 {[%clk 0:04:51.8]} 23. Nd6 {[%clk 0:07:12.3]}
23... Bd5 {[%clk 0:04:30.6]} 24. Kh1 {[%clk 0:06:20.3]} 24... b5 {[%clk
0:04:02.6]} 25. a4 {[%clk 0:05:31.5]} 25... a5 {[%clk 0:03:57.8]} 26. fxe4
{[%clk 0:04:51.3]} 26... fxe4 {[%clk 0:03:57.8]} 27. bxa5 {[%clk 0:03:26.7]}
27... b4 {[%clk 0:03:06.7]} 28. Be3 {[%clk 0:03:19.9]} 28... Rxf1+ {[%clk
0:01:56.8]} 29. Rxf1 {[%clk 0:03:21.8]} 29... Rxa5 {[%clk 0:01:55.9]} 30. Qd2
{[%clk 0:02:36.1]} 30... Rxa4 {[%clk 0:01:55.8]} 31. Bd4 {[%clk 0:02:36.7]}
31... e3 {[%clk 0:01:28.8]} 32. Rf8+ {[%clk 0:02:33.9]} 32... Bg8 {[%clk
0:01:29.7]} 33. Nf7+ {[%clk 0:02:20.7]} 33... Qxf7 {[%clk 0:01:30.8]} 34. Rxf7
{[%clk 0:02:21.7]} 34... Bxf7 {[%clk 0:01:28.8]} 35. Bxg7+ {[%clk 0:02:16.9]}
35... Kxg7 {[%clk 0:01:27.7]} 36. Qd4+ {[%clk 0:02:15.8]} 36... Kg8 {[%clk
0:01:12.4]} 37. Qd8+ {[%clk 0:02:06]} 37... Kg7 {[%clk 0:01:13.4]} 38. Qd4+
{[%clk 0:01:55.5]} 1/2-1/2

[Event "GrandPrix_29.05"]
[Site "Chess.com"]
[Date "2020.05.29"]
[Round "6"]
[White "tsaruk_maks"]
[Black "SantoBlue"]
[Result "1/2-1/2"]
[WhiteElo "2278"]
[BlackElo "2406"]
[TimeControl "600+2"]
[EndTime "11:59:34 PDT"]
[Termination "Game drawn by repetition"]

1. e4 {[%clk 0:10:01.9]} 1... c5 {[%clk 0:09:51]} 2. Nf3 {[%clk 0:10:03.1]} 2...
Nc6 {[%clk 0:09:46.7]} 3. d4 {[%clk 0:10:04.2]} 3... cxd4 {[%clk 0:09:47.5]} 4.
Nxd4 {[%clk 0:10:06.1]} 4... Nf6 {[%clk 0:09:48.7]} 5. Nc3 {[%clk 0:10:07.6]}
5... d6 {[%clk 0:09:49.8]} 6. Bg5 {[%clk 0:10:07.7]} 6... e6 {[%clk 0:09:50.1]}
7. Qd2 {[%clk 0:10:07.5]} 7... a6 {[%clk 0:09:45.5]} 8. O-O-O {[%clk 0:10:08.1]}
8... h6 {[%clk 0:09:43]} 9. Bf4 {[%clk 0:09:41.8]} 9... Bd7 {[%clk 0:08:54.9]}
10. Nxc6 {[%clk 0:09:21.7]} 10... Bxc6 {[%clk 0:08:53.4]} 11. Bxd6 {[%clk
0:09:20.1]} 11... Bxd6 {[%clk 0:08:16.9]} 12. Qxd6 {[%clk 0:09:22]} 12... Qxd6
{[%clk 0:07:38.5]} 13. Rxd6 {[%clk 0:09:23.9]} 13... Ke7 {[%clk 0:07:40.2]} 14.
Rd4 {[%clk 0:09:04.2]} 14... e5 {[%clk 0:07:21]} 15. Rd2 {[%clk 0:09:03.4]}
15... Nxe4 {[%clk 0:07:10.7]} 16. Nxe4 {[%clk 0:09:03.9]} 16... Bxe4 {[%clk
0:07:12.6]} 17. Re2 {[%clk 0:09:05.4]} 17... Bg6 {[%clk 0:07:12.3]} 18. Rxe5+
{[%clk 0:09:06]} 18... Kf6 {[%clk 0:07:13.2]} 19. Re3 {[%clk 0:09:06.5]} 19...
Rhe8 {[%clk 0:07:08]} 20. Rf3+ {[%clk 0:08:32.3]} 20... Ke7 {[%clk 0:06:43.1]}
21. Bd3 {[%clk 0:08:31.3]} 21... Bxd3 {[%clk 0:06:43.9]} 22. Rxd3 {[%clk
0:08:31.7]} 22... Kf6 {[%clk 0:06:44.9]} 23. Kd2 {[%clk 0:08:03.4]} 23... Rac8
{[%clk 0:06:44.6]} 24. c3 {[%clk 0:07:42]} 24... Rcd8 {[%clk 0:06:44.9]} 25. Rd1
{[%clk 0:07:35.4]} 25... Rxd3+ {[%clk 0:06:38.7]} 26. Kxd3 {[%clk 0:07:36.7]}
26... g5 {[%clk 0:06:39.9]} 27. c4 {[%clk 0:06:41.2]} 27... g4 {[%clk
0:06:35.8]} 28. b4 {[%clk 0:06:23.4]} 28... Kf5 {[%clk 0:06:24.1]} 29. c5 {[%clk
0:05:34.6]} 29... h5 {[%clk 0:06:23.5]} 30. a4 {[%clk 0:05:33.1]} 30... h4
{[%clk 0:05:45.8]} 31. b5 {[%clk 0:05:13.3]} 31... axb5 {[%clk 0:05:45.1]} 32.
axb5 {[%clk 0:05:15.2]} 32... Rd8+ {[%clk 0:05:46.7]} 33. Ke2 {[%clk 0:05:13.7]}
33... Re8+ {[%clk 0:05:44.3]} 34. Kf1 {[%clk 0:04:29]} 34... Rc8 {[%clk
0:05:44.8]} 35. Rc1 {[%clk 0:04:28.6]} 35... Ke5 {[%clk 0:05:43.8]} 36. c6
{[%clk 0:04:29.5]} 36... bxc6 {[%clk 0:05:44]} 37. bxc6 {[%clk 0:04:31.4]} 37...
Kd6 {[%clk 0:05:43.7]} 38. Ke2 {[%clk 0:04:32.4]} 38... Re8+ {[%clk 0:05:42.9]}
39. Kd3 {[%clk 0:04:33.3]} 39... Kc7 {[%clk 0:05:42.5]} 40. Rc4 {[%clk
0:04:28.2]} 40... f5 {[%clk 0:05:27.2]} 41. Rc5 {[%clk 0:02:02]} 41... g3 {[%clk
0:04:55.1]} 42. hxg3 {[%clk 0:00:30]} 42... hxg3 {[%clk 0:04:57]} 43. fxg3
{[%clk 0:00:18.8]} 43... Rg8 {[%clk 0:04:57.4]} 44. Ke3 {[%clk 0:00:20.1]} 44...
Rxg3+ {[%clk 0:04:57.5]} 45. Kf2 {[%clk 0:00:21.6]} 45... Ra3 {[%clk 0:04:48]}
46. Rxf5 {[%clk 0:00:20.3]} 46... Kxc6 {[%clk 0:04:49.2]} 47. Rf3 {[%clk
0:00:11.9]} 47... Ra2+ {[%clk 0:04:48.8]} 48. Kg3 {[%clk 0:00:13.2]} 48... Kd6
{[%clk 0:04:46.3]} 49. Rf2 {[%clk 0:00:13]} 49... Ra8 {[%clk 0:04:41.5]} 50. Re2
{[%clk 0:00:11.9]} 50... Rg8+ {[%clk 0:04:42.5]} 51. Kh2 {[%clk 0:00:12.7]}
51... Rh8+ {[%clk 0:04:43.8]} 52. Kg1 {[%clk 0:00:14.1]} 52... Rg8 {[%clk
0:04:45.4]} 53. Re3 {[%clk 0:00:15.4]} 53... Kd5 {[%clk 0:04:37.1]} 54. g3
{[%clk 0:00:16.6]} 54... Kd4 {[%clk 0:04:38.5]} 55. Kf2 {[%clk 0:00:18]} 55...
Rf8+ {[%clk 0:04:38.6]} 56. Rf3 {[%clk 0:00:17.8]} 56... Rg8 {[%clk 0:04:40.4]}
57. Rf4+ {[%clk 0:00:05]} 57... Ke5 {[%clk 0:04:41.6]} 58. Kf3 {[%clk
0:00:06.6]} 58... Ra8 {[%clk 0:04:38.9]} 59. Kg2 {[%clk 0:00:07.9]} 59... Rg8
{[%clk 0:04:36.9]} 60. Rf2 {[%clk 0:00:06.8]} 60... Rg7 {[%clk 0:04:37.9]} 61.
Rf3 {[%clk 0:00:06.4]} 61... Rg8 {[%clk 0:04:39.1]} 62. Rf2 {[%clk 0:00:08]}
62... Rg7 {[%clk 0:04:40.3]} 63. Rf3 {[%clk 0:00:09.7]} 63... Rg8 {[%clk
0:04:41.5]} 64. Rf2 {[%clk 0:00:11.4]} 1/2-1/2

[Event "GrandPrix_29.05"]
[Site "Chess.com"]
[Date "2020.05.29"]
[Round "6"]
[White "LANCELOT96"]
[Black "cukus"]
[Result "1/2-1/2"]
[WhiteElo "2074"]
[BlackElo "2161"]
[TimeControl "600+2"]
[EndTime "11:59:34 PDT"]
[Termination "Game drawn by repetition"]

1. d4 {[%clk 0:09:58.7]} 1... Nf6 {[%clk 0:09:50.6]} 2. c4 {[%clk 0:10:00]} 2...
g6 {[%clk 0:09:50.3]} 3. Nc3 {[%clk 0:10:01]} 3... d5 {[%clk 0:09:49.9]} 4. Nf3
{[%clk 0:10:02]} 4... Bg7 {[%clk 0:09:49.7]} 5. Bg5 {[%clk 0:10:03.3]} 5... Ne4
{[%clk 0:09:50.4]} 6. cxd5 {[%clk 0:10:04.7]} 6... Nxg5 {[%clk 0:09:50.9]} 7.
Nxg5 {[%clk 0:10:06.1]} 7... e6 {[%clk 0:09:51.8]} 8. Nf3 {[%clk 0:10:07.6]}
8... exd5 {[%clk 0:09:52.6]} 9. b4 {[%clk 0:10:09.4]} 9... Qd6 {[%clk
0:09:45.5]} 10. Qb3 {[%clk 0:10:09.9]} 10... c6 {[%clk 0:09:38.7]} 11. e3 {[%clk
0:10:06.8]} 11... O-O {[%clk 0:09:37.4]} 12. Be2 {[%clk 0:10:08]} 12... Na6
{[%clk 0:09:13.4]} 13. b5 {[%clk 0:10:06.2]} 13... Nc7 {[%clk 0:09:06.1]} 14.
bxc6 {[%clk 0:10:07.5]} 14... bxc6 {[%clk 0:09:07.2]} 15. O-O {[%clk 0:10:08.6]}
15... Bf5 {[%clk 0:08:16.3]} 16. Na4 {[%clk 0:09:47.7]} 16... Rab8 {[%clk
0:08:01.7]} 17. Qc3 {[%clk 0:09:48.7]} 17... Nb5 {[%clk 0:07:54.6]} 18. Qc5
{[%clk 0:09:48]} 18... Qxc5 {[%clk 0:07:43.7]} 19. Nxc5 {[%clk 0:09:47.5]} 19...
Nc3 {[%clk 0:07:42.6]} 20. Bd3 {[%clk 0:09:43]} 20... Ne4 {[%clk 0:06:22.4]} 21.
Bxe4 {[%clk 0:09:06.7]} 21... dxe4 {[%clk 0:05:53.2]} 22. Nd2 {[%clk 0:09:07.9]}
22... Rfe8 {[%clk 0:05:41.2]} 23. Rab1 {[%clk 0:09:07.7]} 23... Bf8 {[%clk
0:05:21]} 24. Ndb3 {[%clk 0:08:48.4]} 24... Rb5 {[%clk 0:05:08.4]} 25. h3 {[%clk
0:08:47.2]} 25... h5 {[%clk 0:05:05.7]} 26. a4 {[%clk 0:08:44.5]} 26... Rb4
{[%clk 0:04:27.1]} 27. Na5 {[%clk 0:08:32.3]} 27... Rb6 {[%clk 0:03:44.6]} 28.
Nc4 {[%clk 0:08:23.6]} 28... Rbb8 {[%clk 0:03:31.2]} 29. Rfc1 {[%clk 0:08:14.7]}
29... Kg7 {[%clk 0:02:50.8]} 30. Na6 {[%clk 0:08:14.8]} 30... Rxb1 {[%clk
0:02:09.2]} 31. Rxb1 {[%clk 0:08:15.6]} 31... Rc8 {[%clk 0:02:00.9]} 32. Nc5
{[%clk 0:08:13]} 32... Rd8 {[%clk 0:01:53.3]} 33. Rb7 {[%clk 0:08:08.3]} 33...
Bxc5 {[%clk 0:01:52]} 34. dxc5 {[%clk 0:08:09.3]} 34... Rd7 {[%clk 0:01:45]} 35.
Rb1 {[%clk 0:06:24.1]} 35... Rd5 {[%clk 0:01:32.1]} 36. Rb7 {[%clk 0:06:24.7]}
36... Rxc5 {[%clk 0:01:18.4]} 37. Nd6 {[%clk 0:06:26.1]} 37... Ra5 {[%clk
0:01:16.9]} 38. Rxf7+ {[%clk 0:06:13.3]} 38... Kg8 {[%clk 0:01:17.3]} 39. Rf6
{[%clk 0:06:13.9]} 39... Kg7 {[%clk 0:01:07]} 40. Rf7+ {[%clk 0:06:15.1]} 40...
Kg8 {[%clk 0:01:07]} 41. Rc7 {[%clk 0:06:06.7]} 41... Rxa4 {[%clk 0:01:05]} 42.
Nxf5 {[%clk 0:06:07.9]} 42... gxf5 {[%clk 0:01:04.1]} 43. Rxc6 {[%clk
0:06:09.5]} 43... Kg7 {[%clk 0:01:02.6]} 44. h4 {[%clk 0:06:10.9]} 44... Ra2
{[%clk 0:01:01]} 45. Kh2 {[%clk 0:05:56.6]} 45... a5 {[%clk 0:01:00.3]} 46. Kg3
{[%clk 0:05:56.3]} 46... a4 {[%clk 0:01:01.2]} 47. Ra6 {[%clk 0:05:46.5]} 47...
a3 {[%clk 0:01:01.2]} 48. f3 {[%clk 0:05:48.1]} 48... exf3 {[%clk 0:00:59.5]}
49. gxf3 {[%clk 0:05:50]} 49... Ra1 {[%clk 0:00:59.8]} 50. Kf4 {[%clk
0:05:50.1]} 50... a2 {[%clk 0:00:59.6]} 51. Kxf5 {[%clk 0:05:45.1]} 51... Rf1
{[%clk 0:00:58.1]} 52. Rxa2 {[%clk 0:05:43.8]} 52... Rxf3+ {[%clk 0:00:58.4]}
53. Ke4 {[%clk 0:05:07.4]} 53... Rh3 {[%clk 0:00:58.1]} 54. Rg2+ {[%clk
0:05:08.9]} 54... Kf6 {[%clk 0:00:45.6]} 55. Rf2+ {[%clk 0:05:09.6]} 55... Ke6
{[%clk 0:00:47.1]} 56. Rf4 {[%clk 0:05:10.9]} 56... Rh1 {[%clk 0:00:47.1]} 57.
Kf3 {[%clk 0:05:07.6]} 57... Rf1+ {[%clk 0:00:43.2]} 58. Kg3 {[%clk 0:05:08.8]}
58... Rg1+ {[%clk 0:00:43.8]} 59. Kf2 {[%clk 0:05:09.8]} 59... Rh1 {[%clk
0:00:44.7]} 60. Ra4 {[%clk 0:05:10.4]} 60... Kf5 {[%clk 0:00:43.2]} 61. Kg2
{[%clk 0:05:02.8]} 61... Rb1 {[%clk 0:00:43]} 62. Kg3 {[%clk 0:05:00.4]} 62...
Rg1+ {[%clk 0:00:43.1]} 63. Kh3 {[%clk 0:05:01.9]} 63... Rh1+ {[%clk 0:00:44.3]}
64. Kg3 {[%clk 0:05:02.9]} 64... Rg1+ {[%clk 0:00:45.6]} 65. Kf3 {[%clk
0:05:04.4]} 65... Rf1+ {[%clk 0:00:46.9]} 66. Kg2 {[%clk 0:05:06]} 66... Rb1
{[%clk 0:00:47.7]} 67. Kh2 {[%clk 0:05:07.4]} 67... Rc1 {[%clk 0:00:48.7]} 68.
Rf4+ {[%clk 0:05:07.5]} 68... Ke5 {[%clk 0:00:48.5]} 69. Rf8 {[%clk 0:05:02.9]}
69... Ke4 {[%clk 0:00:45.1]} 70. Rh8 {[%clk 0:04:52.8]} 70... Kxe3 {[%clk
0:00:45.2]} 71. Rxh5 {[%clk 0:04:54.1]} 71... Kf4 {[%clk 0:00:45.6]} 72. Rg5
{[%clk 0:04:54.9]} 72... Rc2+ {[%clk 0:00:44.2]} 73. Kh3 {[%clk 0:04:55.9]}
73... Rc3+ {[%clk 0:00:45]} 74. Kh2 {[%clk 0:04:57.1]} 74... Rc2+ {[%clk
0:00:46.5]} 75. Kh1 {[%clk 0:04:58.5]} 75... Rc1+ {[%clk 0:00:47.8]} 76. Kh2
{[%clk 0:05:00.2]} 76... Rc2+ {[%clk 0:00:49.2]} 1/2-1/2

[Event "GrandPrix_29.05"]
[Site "Chess.com"]
[Date "2020.05.29"]
[Round "6"]
[White "Durarbayli"]
[Black "Arseniy_Nesterov"]
[Result "1-0"]
[WhiteElo "2521"]
[BlackElo "2274"]
[TimeControl "600+2"]
[EndTime "11:59:35 PDT"]
[Termination "Durarbayli won by resignation"]

1. e4 {[%clk 0:10:01.9]} 1... e5 {[%clk 0:09:58.6]} 2. Nf3 {[%clk 0:10:00.8]}
2... Nc6 {[%clk 0:09:59.2]} 3. Bb5 {[%clk 0:10:01.8]} 3... Nf6 {[%clk 0:09:55]}
4. d3 {[%clk 0:10:01.9]} 4... Bc5 {[%clk 0:09:55.6]} 5. Bxc6 {[%clk 0:10:01.8]}
5... dxc6 {[%clk 0:09:54.7]} 6. Nbd2 {[%clk 0:10:02.8]} 6... Bd6 {[%clk
0:09:47.1]} 7. Nc4 {[%clk 0:10:01.4]} 7... Qe7 {[%clk 0:09:44.4]} 8. h3 {[%clk
0:09:55.5]} 8... Be6 {[%clk 0:09:43.9]} 9. Nfxe5 {[%clk 0:08:30.6]} 9... O-O-O
{[%clk 0:07:37]} 10. Qe2 {[%clk 0:08:20.2]} 10... Bxe5 {[%clk 0:05:25.2]} 11.
Nxe5 {[%clk 0:08:18.7]} 11... Qb4+ {[%clk 0:05:24.6]} 12. c3 {[%clk 0:07:09.5]}
12... Qb5 {[%clk 0:04:12.1]} 13. Bf4 {[%clk 0:07:06.2]} 13... Nd7 {[%clk
0:03:28.3]} 14. a4 {[%clk 0:05:42.6]} 14... Qa6 {[%clk 0:02:43.9]} 15. d4 {[%clk
0:05:00.9]} 15... Qxe2+ {[%clk 0:02:37.6]} 16. Kxe2 {[%clk 0:05:02.8]} 16...
Nxe5 {[%clk 0:02:38.8]} 17. Bxe5 {[%clk 0:05:01.7]} 17... f6 {[%clk 0:02:40.1]}
18. Bg3 {[%clk 0:04:58.8]} 18... Bc4+ {[%clk 0:02:32.7]} 19. Ke3 {[%clk
0:04:58.1]} 19... Rhe8 {[%clk 0:02:33.2]} 20. f3 {[%clk 0:04:55]} 20... c5
{[%clk 0:02:13.1]} 21. a5 {[%clk 0:04:49.6]} 21... a6 {[%clk 0:02:12.3]} 22.
Rhd1 {[%clk 0:04:49.3]} 22... Bb3 {[%clk 0:01:56]} 23. Rd2 {[%clk 0:04:48.8]}
23... c4 {[%clk 0:01:56.5]} 24. Bh2 {[%clk 0:04:44.6]} 24... Rd5 {[%clk
0:01:54.2]} 25. g4 {[%clk 0:04:41.2]} 25... Kd7 {[%clk 0:01:37.5]} 26. Bf4
{[%clk 0:04:28.8]} 26... Rb5 {[%clk 0:01:36.2]} 27. h4 {[%clk 0:04:14.6]} 27...
c6 {[%clk 0:01:31]} 28. Rg2 {[%clk 0:03:53.3]} 28... Re7 {[%clk 0:00:43.8]} 29.
g5 {[%clk 0:03:51.6]} 29... f5 {[%clk 0:00:41.8]} 30. Be5 {[%clk 0:03:20.9]}
30... fxe4 {[%clk 0:00:29.2]} 31. fxe4 {[%clk 0:03:20.5]} 31... g6 {[%clk
0:00:27.4]} 32. Rf2 {[%clk 0:03:12.4]} 32... Ke8 {[%clk 0:00:28.4]} 33. Bd6
{[%clk 0:02:57]} 33... Rf7 {[%clk 0:00:28.4]} 34. Rxf7 {[%clk 0:02:56.4]} 34...
Kxf7 {[%clk 0:00:29.4]} 35. Rf1+ {[%clk 0:02:56.7]} 35... Ke6 {[%clk 0:00:24.7]}
36. Rf6+ {[%clk 0:02:56.9]} 36... Kd7 {[%clk 0:00:25.7]} 37. Bb4 {[%clk
0:02:54.9]} 37... c5 {[%clk 0:00:24]} 38. dxc5 {[%clk 0:02:38.5]} 1-0